bitfinex/quotes_SOLUSD_20250622
["timestamp","ask_amount","ask_price","bid_price","bid_amount"]
[1750609398346,6.1598,129.1,129.03,28.1298775]
[1750609398538,58.06,129.08,129.05,28.1298775]
[1750609399129,7.9,129.09,129.06,28.1298775]
[1750609399461,32.14,129.07,129.01,19.37964886]
[1750609399633,32.14,129.07,129.06,28.1298775]
[1750609400814,32.14,129.07,129.04,28.1298775]
[1750609401018,32.14,129.07,129.01,19.37964886]
[1750609401244,32.14,129.07,129.04,28.1298775]
[1750609401745,32.14,129.07,129.05,28.1298775]
[1750609402444,32.14,129.07,129.04,28.1298775]
[1750609403045,60.2698775,129.07,129.03,28.1298775]
[1750609403222,51.38952782,129.07,129.03,19.24952782]
[1750609403421,51.38952782,129.07,129.01,19.24952782]
[1750609403422,19.92952782,129.06,129.01,19.24952782]
[1750609403740,19.24952782,129.04,129.0,19.24952782]
[1750609403922,39.98,129.03,128.99,19.24952782]
[1750609404117,39.98,129.03,129.0,19.24952782]
[1750609405141,39.98,129.03,129.0,28.16516599]
[1750609406157,26.0,128.99,128.9,0.74]
[1750609406335,28.16516599,128.94,128.88,1.5425]
[1750609406521,94.12516599,128.93,128.87,0.74]
[1750609406725,28.16516599,128.9,128.86,28.16516599]
[1750609407047,60.24516599,128.89,128.84,30.44766599]
[1750609407219,26.0,128.93,128.88,28.16516599]
[1750609407420,39.98,128.92,128.9,28.16516599]
[1750609407743,39.98,128.92,128.87,18.64964886]
[1750609407921,39.98,128.92,128.86,0.74]
[1750609407922,28.16516599,128.91,128.86,28.16516599]
[1750609408118,28.16516599,128.89,128.85,28.16516599]
[1750609408323,32.08,128.88,128.85,28.16516599]
[1750609409555,60.24516599,128.88,128.84,28.90516599]
[1750609409760,60.24516599,128.88,128.83,28.16516599]
[1750609409982,28.16516599,128.87,128.83,28.16516599]
[1750609410280,7.9,128.86,128.84,28.90516599]
[1750609410976,166.74964886,128.95,128.85,46.81481485]
[1750609411186,54.16516599,128.91,128.84,0.74]
[1750609411361,28.16516599,128.88,128.83,28.16516599]
[1750609411549,39.9,128.87,128.83,28.16516599]
[1750609411878,39.9,128.87,128.83,28.90516599]
[1750609412056,39.9,128.87,128.84,28.16516599]
[1750609412377,68.06516599,128.87,128.81,44.64964886]
[1750609412582,68.06516599,128.87,128.83,28.16516599]
[1750609412876,68.06516599,128.87,128.82,28.16516599]
[1750609413210,68.06516599,128.87,128.82,0.74]
[1750609413485,39.9,128.87,128.83,28.16516599]
[1750609413777,39.9,128.87,128.82,0.74]
[1750609414183,39.9,128.87,128.81,18.64964886]
[1750609414184,28.16516599,128.83,128.79,28.16516599]
[1750609414361,32.12,128.82,128.78,0.74]
[1750609414565,32.12,128.82,128.79,28.16516599]
[1750609414775,32.12,128.82,128.81,28.16516599]
[1750609414973,26.0,128.86,128.81,28.16516599]
[1750609414974,66.0,128.88,128.82,18.64964886]
[1750609415482,28.16516599,128.86,128.82,28.16516599]
[1750609415651,32.16,128.85,128.81,0.74]
[1750609415859,60.32516599,128.85,128.81,28.16516599]
[1750609416367,60.32516599,128.85,128.82,28.16516599]
[1750609416368,32.16,128.85,128.82,28.16516599]
[1750609416754,32.16,128.85,128.81,28.16516599]
[1750609416983,32.16,128.85,128.83,28.16516599]
[1750609417180,32.16,128.85,128.81,0.74]
[1750609417381,32.16,128.85,128.84,28.16516599]
[1750609417682,39.98,128.86,128.84,28.16516599]
[1750609418085,39.98,128.86,128.82,18.64964886]
[1750609418290,68.14516599,128.86,128.82,28.16516599]
[1750609418463,28.16516599,128.85,128.81,28.16516599]
[1750609418974,39.98,128.86,128.78,26.74]
[1750609418975,39.98,128.86,128.82,28.16516599]
[1750609419292,68.14516599,128.86,128.79,18.64964886]
[1750609419486,39.98,128.86,128.82,28.16516599]
[1750609419798,68.14516599,128.86,128.82,28.16516599]
[1750609421074,68.14516599,128.86,128.79,18.64964886]
[1750609421277,68.14516599,128.86,128.81,28.16516599]
[1750609421477,68.14516599,128.86,128.82,28.16516599]
[1750609421884,39.98,128.86,128.83,28.16516599]
[1750609422194,39.98,128.86,128.8,0.74]
[1750609422502,39.98,128.86,128.8,6.4559]
[1750609422669,6.1799,128.92,128.85,28.16516599]
[1750609422868,40.04,128.91,128.89,28.16516599]
[1750609423075,68.20516599,128.91,128.85,18.64964886]
[1750609423288,36.00516599,128.91,128.87,28.16516599]
[1750609423502,60.38516599,128.9,128.85,28.16516599]
[1750609423994,60.38516599,128.9,128.86,28.16516599]
[1750609424182,60.38516599,128.9,128.84,0.74]
[1750609424496,32.22,128.9,128.86,28.16516599]
[1750609424876,60.38516599,128.9,128.85,28.16516599]
[1750609425084,60.38516599,128.9,128.84,0.74]
[1750609425407,28.16516599,128.88,128.83,28.16516599]
[1750609425695,60.36516599,128.87,128.82,28.16516599]
[1750609425871,32.18,128.86,128.82,28.16516599]
[1750609426078,7.84,128.85,128.82,28.16516599]
[1750609426466,32.2,128.84,128.8,19.38964886]
[1750609426667,32.2,128.84,128.82,28.16516599]
[1750609428080,32.2,128.84,128.8,0.74]
[1750609428396,32.2,128.84,128.81,28.16516599]
[1750609428809,32.2,128.84,128.79,20.98334886]
[1750609428975,32.2,128.84,128.8,28.16516599]
[1750609429303,51.51834163,128.84,128.79,19.31834163]
[1750609429470,51.51834163,128.84,128.8,19.31834163]
[1750609429894,32.2,128.84,128.81,19.31834163]
[1750609430099,32.2,128.84,128.78,18.64964886]
[1750609430266,51.51834163,128.84,128.79,19.31834163]
[1750609430474,58.88,128.84,128.78,19.31834163]
[1750609430776,19.31834163,128.83,128.78,19.31834163]
[1750609431001,32.14,128.82,128.78,19.31834163]
[1750609431600,32.14,128.82,128.79,19.31834163]
[1750609431893,32.14,128.82,128.78,19.31834163]
[1750609433107,51.45834163,128.82,128.75,63.10092453]
[1750609433403,51.45834163,128.82,128.78,19.31834163]
[1750609433586,51.45834163,128.82,128.77,19.31834163]
[1750609433792,19.31834163,128.81,128.77,19.31834163]
[1750609434499,32.14,128.82,128.78,19.31834163]
[1750609434695,32.14,128.82,128.79,19.31834163]
[1750609435295,32.14,128.82,128.77,18.64964886]
[1750609435501,32.14,128.82,128.78,19.31834163]
[1750609436189,32.14,128.82,128.77,18.64964886]
[1750609436390,32.14,128.82,128.78,19.31834163]
[1750609436586,51.45834163,128.82,128.77,18.64964886]
[1750609436895,51.45834163,128.82,128.78,19.31834163]
[1750609437092,51.45834163,128.82,128.77,19.31834163]
[1750609437289,19.31834163,128.81,128.76,0.68]
[1750609437487,19.31834163,128.81,128.77,19.31834163]
[1750609437784,32.14,128.82,128.77,19.31834163]
[1750609437989,32.14,128.82,128.79,19.31834163]
[1750609438585,32.14,128.82,128.79,19.99834163]
[1750609438985,32.14,128.82,128.79,19.31834163]
[1750609439192,32.14,128.82,128.8,19.31834163]
[1750609439389,51.45834163,128.82,128.77,19.31834163]
[1750609439594,51.45834163,128.82,128.75,58.29996716]
[1750609439595,19.31834163,128.8,128.75,58.29996716]
[1750609439782,19.31834163,128.78,128.74,57.79401372]
[1750609440209,19.31834163,128.77,128.72,38.44438586]
[1750609440406,40.56,128.79,128.65,26.42836942]
[1750609440407,32.02,128.76,128.73,57.72067116]
[1750609440610,32.02,128.76,128.75,38.98162553]
[1750609440915,51.33834163,128.76,128.72,38.44438586]
[1750609441126,51.33834163,128.76,128.7,33.86345849]
[1750609441127,32.72,128.76,128.7,33.86345849]
[1750609441328,32.72,128.76,128.74,33.79401372]
[1750609441329,0.7,128.75,128.74,33.79401372]
[1750609441533,20.01834163,128.75,128.74,33.79401372]
[1750609441690,20.01834163,128.75,128.74,19.31834163]
[1750609442008,26.0,128.72,128.68,0.1039413]
[1750609442207,26.0,128.71,128.68,0.1039413]
[1750609442506,19.31834163,128.69,128.68,0.1039413]
[1750609442817,65.82,128.71,128.68,0.3209036]
[1750609442987,19.31834163,128.69,128.68,0.3209036]
[1750609443189,28.32844607,128.69,128.68,0.3209036]
[1750609443899,6.4523,128.7,128.68,0.3209036]
[1750609444097,65.84,128.69,128.68,0.3209036]
[1750609444623,54.32844607,128.72,128.68,28.64934967]
[1750609444797,7.8,128.71,128.68,0.3209036]
[1750609444996,39.9,128.75,128.69,0.68]
[1750609445206,39.9,128.75,128.74,28.32844607]
[1750609445518,39.9,128.75,128.68,18.97055246]
[1750609445691,7.8,128.75,128.74,28.32844607]
[1750609446016,7.82,128.77,128.76,0.68]
[1750609446220,7.82,128.77,128.76,47.65809493]
[1750609446609,26.0,128.83,128.77,18.64964886]
[1750609446910,39.94,128.82,128.81,28.32844607]
[1750609447116,7.82,128.82,128.8,28.32844607]
[1750609447316,39.94,128.82,128.8,28.32844607]
[1750609447703,39.94,128.82,128.81,28.32844607]
[1750609448116,5.40623859,128.81,128.78,0.68]
[1750609448318,5.40623859,128.81,128.8,28.32844607]
[1750609448926,5.40623859,128.81,128.8,47.65809493]
[1750609451612,5.40623859,128.81,128.8,29.00844607]
[1750609452033,25.51009757,128.93,128.8,29.00844607]
[1750609452034,7.04130775,128.95,128.84,26.0]
[1750609452208,37.37853198,128.93,128.88,28.32844607]
[1750609452525,60.40844607,128.92,128.88,28.32844607]
[1750609452840,54.32844607,128.89,128.8,0.68]
[1750609453018,0.7,128.84,128.8,28.32844607]
[1750609453332,58.1,128.83,128.72,20.44438586]
[1750609453502,28.32844607,128.8,128.76,28.32844607]
[1750609453699,28.32844607,128.8,128.71,0.68]
[1750609453700,32.1,128.79,128.77,28.32844607]
[1750609453909,32.1,128.79,128.78,28.32844607]
[1750609454605,32.1,128.79,128.77,28.32844607]
[1750609455029,32.1,128.79,128.78,28.32844607]
[1750609455204,7.8,128.84,128.79,18.64964886]
[1750609455404,7.8,128.84,128.81,28.32844607]
[1750609455602,36.82844607,128.84,128.8,28.32844607]
[1750609455810,28.32844607,128.83,128.79,28.32844607]
[1750609456039,32.12,128.82,128.79,28.32844607]
[1750609456443,61.14844607,128.82,128.77,28.32844607]
[1750609456612,29.02844607,128.81,128.77,28.32844607]
[1750609456813,0.7,128.81,128.77,28.32844607]
[1750609457031,60.44844607,128.82,128.73,45.32964886]
[1750609457032,32.12,128.82,128.79,28.32844607]
[1750609457233,28.32844607,128.81,128.76,28.32844607]
[1750609457440,29.02844607,128.81,128.77,28.32844607]
[1750609457742,0.7,128.81,128.77,28.32844607]
[1750609458144,60.44844607,128.82,128.74,18.64964886]
[1750609458440,61.14844607,128.82,128.78,28.32844607]
[1750609458647,32.12,128.82,128.8,28.32844607]
[1750609459149,32.12,128.82,128.79,28.32844607]
[1750609459846,32.12,128.82,128.81,28.32844607]
[1750609460233,7.8,128.84,128.81,28.32844607]
[1750609460541,32.04,128.83,128.82,28.32844607]
[1750609460914,32.04,128.83,128.81,28.32844607]
[1750609461121,32.04,128.83,128.8,28.32844607]
[1750609462309,32.04,128.83,128.77,44.64964886]
[1750609462529,28.32844607,128.81,128.73,18.64964886]
[1750609462736,32.0,128.8,128.77,28.32844607]
[1750609463308,32.0,128.8,128.76,28.32844607]
[1750609464029,60.32844607,128.8,128.75,28.32844607]
[1750609464229,0.71,128.79,128.75,28.32844607]
[1750609464423,7.8,128.78,128.73,18.64964886]
[1750609464611,61.03844607,128.77,128.72,28.32844607]
[1750609464809,28.32844607,128.76,128.72,28.32844607]
[1750609465028,61.03844607,128.77,128.72,28.32844607]
[1750609465233,61.03844607,128.77,128.73,28.32844607]
[1750609465934,28.32844607,128.76,128.72,28.32844607]
[1750609466126,28.32844607,128.75,128.7,54.32844607]
[1750609466332,32.0,128.74,128.7,26.0]
[1750609466517,32.0,128.74,128.71,28.32844607]
[1750609466831,61.03844607,128.74,128.69,28.32844607]
[1750609467534,61.03844607,128.74,128.7,28.32844607]
[1750609467911,32.0,128.74,128.71,28.32844607]
[1750609468111,32.0,128.74,128.7,28.32844607]
[1750609468314,32.0,128.74,128.68,0.1039413]
[1750609468639,32.0,128.74,128.7,28.32844607]
[1750609469140,32.0,128.74,128.68,0.1039413]
[1750609469319,32.0,128.74,128.7,28.32844607]
[1750609469811,28.32844607,128.73,128.68,0.1039413]
[1750609470015,7.82,128.72,128.69,28.32844607]
[1750609470217,7.82,128.72,128.68,28.43238737]
[1750609470218,32.0,128.71,128.68,28.43238737]
[1750609470816,32.0,128.71,128.68,0.1039413]
[1750609471139,29.03844607,128.69,128.68,0.1039413]
[1750609471841,29.03844607,128.69,128.59,17.54482354]
[1750609471842,55.03844607,128.69,128.59,17.54482354]
[1750609472021,28.32844607,128.67,128.59,0.73]
[1750609472219,6.31328636,128.7,128.64,28.32844607]
[1750609472539,39.78,128.69,128.67,28.32844607]
[1750609473034,39.78,128.69,128.65,28.32844607]
[1750609473214,28.32844607,128.66,128.6,18.64964886]
[1750609473414,28.32844607,128.62,128.55,11.16683968]
[1750609473630,37.75884916,128.61,128.57,28.32844607]
[1750609473824,37.75884916,128.61,128.58,28.32844607]
[1750609474034,37.75884916,128.61,128.59,28.32844607]
[1750609474236,37.75884916,128.61,128.58,18.64964886]
[1750609474633,37.75884916,128.61,128.57,0.73]
[1750609474946,37.75884916,128.61,128.57,28.32844607]
[1750609475318,45.5344332,128.61,128.52,3.90748648]
[1750609475542,26.0,128.58,128.52,59.06062842]
[1750609475728,32.02,128.57,128.54,28.32844607]
[1750609476046,39.8,128.56,128.51,0.73]
[1750609476349,54.32844607,128.6,128.55,28.32844607]
[1750609476350,39.8,128.57,128.55,28.32844607]
[1750609476552,54.32844607,128.6,128.52,18.64964886]
[1750609476553,28.32844607,128.6,128.56,28.32844607]
[1750609476720,6.1096,128.66,128.59,46.97809493]
[1750609477031,68.14844607,128.65,128.61,28.32844607]
[1750609477229,39.8,128.64,128.62,28.32844607]
[1750609477439,39.8,128.64,128.63,28.32844607]
[1750609477744,39.8,128.64,128.6,18.64964886]
[1750609478253,39.8,128.64,128.63,46.97809493]
[1750609478436,7.78,128.64,128.63,46.97809493]
[1750609478817,7.78,128.64,128.61,0.73]
[1750609479020,7.78,128.64,128.63,28.32844607]
[1750609481146,7.78,128.64,128.63,46.97809493]
[1750609481847,7.78,128.64,128.63,47.70809493]
[1750609482544,39.94,128.69,128.64,18.64964886]
[1750609482854,39.3821,128.69,128.68,28.32844607]
[1750609483348,39.94,128.73,128.69,18.64964886]
[1750609483529,39.94,128.73,128.7,28.32844607]
[1750609483722,39.94,128.73,128.65,18.64964886]
[1750609483723,28.32844607,128.72,128.65,18.64964886]
[1750609483924,28.32844607,128.72,128.68,28.32844607]
[1750609484124,68.26844607,128.73,128.68,28.32844607]
[1750609484550,28.32844607,128.72,128.68,28.32844607]
[1750609485327,68.26844607,128.73,128.69,28.32844607]
[1750609485948,68.97844607,128.73,128.68,28.32844607]
[1750609486153,40.65,128.73,128.68,28.32844607]
[1750609486462,68.97844607,128.73,128.68,28.32844607]
[1750609487261,68.97844607,128.73,128.69,28.32844607]
[1750609487433,39.94,128.73,128.67,18.64964886]
[1750609487639,39.94,128.73,128.69,28.32844607]
[1750609488053,39.94,128.73,128.7,28.32844607]
[1750609488283,39.94,128.73,128.69,28.32844607]
[1750609489162,32.04,128.72,128.71,19.3462223]
[1750609489360,32.04,128.72,128.67,44.64964886]
[1750609489572,32.04,128.72,128.67,45.37964886]
[1750609490561,32.04,128.72,128.68,0.73]
[1750609491861,32.04,128.72,128.69,19.3462223]
[1750609492465,32.04,128.72,128.7,19.3462223]
[1750609493042,32.04,128.72,128.68,18.64964886]
[1750609493241,32.04,128.72,128.7,19.3462223]
[1750609494457,32.04,128.72,128.68,18.64964886]
[1750609494654,32.04,128.72,128.68,37.99587116]
[1750609494854,32.04,128.72,128.69,19.3462223]
[1750609495237,32.04,128.72,128.68,19.3462223]
[1750609495441,32.04,128.72,128.69,19.3462223]
[1750609495859,51.3862223,128.72,128.66,19.38964886]
[1750609496076,32.04,128.72,128.68,19.3462223]
[1750609496238,32.04,128.72,128.69,19.3462223]
[1750609496678,51.3862223,128.72,128.68,19.3462223]
[1750609496850,52.1062223,128.72,128.67,19.3462223]
[1750609497180,6.5055,128.71,128.63,23.365395]
[1750609497355,6.5055,128.71,128.62,38.80994362]
[1750609497356,34.1677,128.71,128.62,19.3462223]
[1750609497555,19.3462223,128.69,128.62,38.06994362]
[1750609497863,32.02,128.68,128.65,19.3462223]
[1750609498069,32.02,128.67,128.64,37.99587116]
[1750609498273,32.02,128.67,128.65,19.3462223]
[1750609498475,32.02,128.67,128.64,18.64964886]
[1750609498659,32.02,128.69,128.64,19.38964886]
[1750609499050,0.72,128.7,128.65,19.3462223]
[1750609499252,32.02,128.7,128.68,19.3462223]
[1750609499548,32.02,128.7,128.66,19.3462223]
[1750609499773,32.02,128.7,128.67,19.3462223]
[1750609500081,26.72,128.73,128.69,19.3462223]
[1750609500250,32.04,128.73,128.66,18.64964886]
[1750609500574,19.3462223,128.7,128.65,18.64964886]
[1750609500764,52.1062223,128.72,128.67,19.3462223]
[1750609500947,20.0662223,128.7,128.65,37.99587116]
[1750609501350,0.72,128.7,128.65,19.3462223]
[1750609501648,58.76,128.72,128.63,19.38964886]
[1750609501885,7.78,128.74,128.71,19.3462223]
[1750609502169,8.68425668,128.78,128.73,20.0862223]
[1750609502375,8.68425668,128.78,128.76,19.3462223]
[1750609502580,7.8,128.79,128.77,19.3462223]
[1750609502750,7.8,128.79,128.78,19.3462223]
[1750609502947,7.8,128.79,128.73,18.64964886]
[1750609503153,7.8,128.79,128.77,19.3462223]
[1750609503851,27.1462223,128.79,128.73,18.64964886]
[1750609504052,7.8,128.79,128.76,19.3462223]
[1750609504478,7.7623258,128.83,128.78,19.3462223]
[1750609504681,53.1085481,128.83,128.79,19.3462223]
[1750609504866,58.0336223,128.84,128.8,19.3462223]
[1750609505065,58.0336223,128.84,128.76,18.64964886]
[1750609505370,39.4074,128.84,128.8,28.25964312]
[1750609505554,39.4074,128.84,128.76,18.64964886]
[1750609505555,46.44916837,128.84,128.81,28.25964312]
[1750609506194,155.88,128.85,128.81,28.25964312]
[1750609506361,195.72113838,128.85,128.82,28.25964312]
[1750609506674,163.64113838,128.85,128.81,28.25964312]
[1750609506848,155.88,128.85,128.82,28.25964312]
[1750609507254,155.88,128.85,128.83,28.25964312]
[1750609507483,155.88,128.85,128.82,28.25964312]
[1750609507484,7.78,128.85,128.82,28.25964312]
[1750609509347,28.25964312,128.84,128.78,0.74]
[1750609509587,7.78,128.85,128.82,28.25964312]
[1750609509968,7.78,128.85,128.83,28.25964312]
[1750609510281,7.78,128.85,128.84,28.25964312]
[1750609510751,42.14060013,128.88,128.83,18.64964886]
[1750609510954,42.14060013,128.88,128.84,28.25964312]
[1750609511183,28.25964312,128.87,128.83,28.25964312]
[1750609511671,28.25964312,128.84,128.8,28.25964312]
[1750609511881,28.25964312,128.84,128.75,23.345395]
[1750609511882,28.25964312,128.81,128.75,23.345395]
[1750609512188,39.82,128.83,128.74,28.25964312]
[1750609512189,28.25964312,128.78,128.74,28.25964312]
[1750609512358,28.25964312,128.79,128.73,2.3088]
[1750609512560,28.25964312,128.79,128.74,28.25964312]
[1750609512753,28.25964312,128.78,128.74,28.25964312]
[1750609512954,28.25964312,128.79,128.74,28.25964312]
[1750609513181,28.25964312,128.75,128.69,25.737195]
[1750609513382,28.25964312,128.74,128.69,2.3918]
[1750609513675,39.86,128.76,128.69,28.99964312]
[1750609513853,28.25964312,128.74,128.7,28.25964312]
[1750609514356,28.25964312,128.73,128.69,28.25964312]
[1750609514555,60.35964312,128.73,128.68,28.25964312]
[1750609514765,68.12809133,128.73,128.68,28.25964312]
[1750609514965,60.35964312,128.73,128.69,28.25964312]
[1750609515157,32.1,128.73,128.67,18.64964886]
[1750609515372,60.35964312,128.73,128.69,28.25964312]
[1750609515564,28.25964312,128.72,128.67,28.25964312]
[1750609516063,28.25964312,128.71,128.67,28.25964312]
[1750609516462,28.25964312,128.71,128.66,0.74]
[1750609516676,28.25964312,128.72,128.67,28.25964312]
[1750609517662,36.02846509,128.72,128.67,28.25964312]
[1750609519079,28.25964312,128.72,128.67,28.25964312]
[1750609519382,28.25964312,128.72,128.68,28.25964312]
[1750609520168,68.12786676,128.73,128.69,28.25964312]
[1750609520370,32.1,128.73,128.7,28.25964312]
[1750609520985,32.14,128.75,128.72,28.25964312]
[1750609521484,32.14,128.75,128.71,28.25964312]
[1750609521673,68.16686028,128.75,128.68,18.64964886]
[1750609521879,60.39964312,128.75,128.7,28.25964312]
[1750609522086,60.39964312,128.75,128.68,18.64964886]
[1750609522087,28.25964312,128.74,128.69,28.25964312]
[1750609522958,28.25964312,128.74,128.68,18.64964886]
[1750609523161,28.25964312,128.74,128.69,28.25964312]
[1750609523361,36.02731657,128.74,128.69,28.25964312]
[1750609523575,28.25964312,128.73,128.68,18.64964886]
[1750609523786,60.37964312,128.72,128.67,28.25964312]
[1750609523984,28.25964312,128.71,128.67,28.25964312]
[1750609524161,32.12,128.72,128.66,46.90929198]
[1750609524365,28.25964312,128.71,128.67,28.25964312]
[1750609524686,28.25964312,128.69,128.65,28.25964312]
[1750609524887,32.1,128.69,128.65,28.25964312]
[1750609525068,32.1,128.69,128.66,28.25964312]
[1750609525262,7.78,128.7,128.68,28.25964312]
[1750609525500,39.86,128.75,128.7,18.64964886]
[1750609525821,39.86,128.75,128.71,28.25964312]
[1750609525995,75.88668145,128.75,128.7,28.25964312]
[1750609526209,47.62703833,128.75,128.7,28.25964312]
[1750609526370,28.25964312,128.74,128.69,28.25964312]
[1750609527095,28.25964312,128.73,128.68,28.25964312]
[1750609527275,27.12859789,128.69,128.63,18.64964886]
[1750609527472,59.25797389,128.69,128.64,19.35797389]
[1750609527784,39.9,128.69,128.67,19.35797389]
[1750609527985,7.76951226,128.71,128.67,19.35797389]
[1750609528164,39.9,128.71,128.67,19.35797389]
[1750609528361,39.9,128.71,128.65,0.72]
[1750609528362,19.35797389,128.7,128.65,19.35797389]
[1750609528999,39.9,128.71,128.64,38.00762275]
[1750609529000,19.35797389,128.69,128.64,38.00762275]
[1750609529165,60.46330421,128.68,128.64,28.32330421]
[1750609529369,68.23500908,128.68,128.63,28.32330421]
[1750609529779,28.32330421,128.67,128.63,46.97295307]
[1750609530191,28.32330421,128.66,128.62,0.72]
[1750609530394,28.32330421,128.67,128.63,28.32330421]
[1750609530593,60.46330421,128.68,128.63,28.32330421]
[1750609530813,32.14,128.68,128.67,28.32330421]
[1750609530981,38.7563,128.7,128.67,28.32330421]
[1750609531186,32.12,128.7,128.66,46.97295307]
[1750609531389,60.44330421,128.7,128.66,18.64964886]
[1750609531701,60.44330421,128.7,128.66,46.97295307]
[1750609532075,32.12,128.7,128.66,46.97295307]
[1750609532501,32.12,128.7,128.67,28.32330421]
[1750609533205,32.12,128.7,128.66,46.97295307]
[1750609533405,32.12,128.7,128.67,28.32330421]
[1750609534102,32.12,128.7,128.66,18.64964886]
[1750609534298,32.12,128.7,128.68,28.32330421]
[1750609534480,32.12,128.7,128.67,28.32330421]
[1750609534968,32.12,128.7,128.66,18.64964886]
[1750609534969,32.12,128.7,128.66,46.97295307]
[1750609535173,32.12,128.7,128.67,28.32330421]
[1750609535396,32.12,128.7,128.66,18.64964886]
[1750609535788,32.12,128.7,128.66,46.97295307]
[1750609536273,32.12,128.7,128.66,85.65513971]
[1750609536471,32.12,128.7,128.67,28.32330421]
[1750609536882,32.12,128.7,128.66,85.65513971]
[1750609537194,32.12,128.7,128.67,28.32330421]
[1750609537402,32.04,128.7,128.69,46.97295307]
[1750609537582,39.88,128.73,128.7,18.64964886]
[1750609537779,39.88,128.73,128.7,46.97295307]
[1750609537982,39.88,128.73,128.71,28.32330421]
[1750609538186,39.88,128.73,128.7,18.64964886]
[1750609538386,39.88,128.73,128.69,28.32330421]
[1750609538593,68.20330421,128.73,128.69,28.32330421]
[1750609538809,68.20330421,128.73,128.68,28.32330421]
[1750609538996,28.32330421,128.7,128.67,38.20964247]
[1750609539177,26.0,128.72,128.66,18.64964886]
[1750609539178,32.04,128.69,128.66,18.64964886]
[1750609539378,32.04,128.69,128.67,28.32330421]
[1750609539590,32.04,128.69,128.66,57.3318355]
[1750609539778,32.04,128.69,128.66,46.97295307]
[1750609540203,32.04,128.69,128.66,18.64964886]
[1750609540389,32.04,128.69,128.66,46.97295307]
[1750609540903,32.04,128.69,128.67,28.32330421]
[1750609541086,32.04,128.71,128.68,46.97295307]
[1750609541285,32.04,128.71,128.69,28.32330421]
[1750609541798,7.84,128.72,128.67,18.64964886]
[1750609541799,1.4141,128.72,128.67,18.64964886]
[1750609541998,1.4141,128.72,128.69,28.32330421]
[1750609542298,1.4141,128.72,128.7,28.32330421]
[1750609542712,1.4141,128.72,128.69,28.32330421]
[1750609543212,36.69,128.68,128.63,61.95386919]
[1750609543384,0.69,128.66,128.64,18.42845725]
[1750609543711,36.85330421,128.65,128.64,18.42845725]
[1750609544908,36.16330421,128.65,128.64,18.42845725]
[1750609545082,36.16330421,128.65,128.61,28.32330421]
[1750609545416,39.88,128.65,128.61,29.04330421]
[1750609545905,7.84,128.65,128.62,28.32330421]
[1750609546204,7.84,128.66,128.63,29.04330421]
[1750609546412,7.84,128.66,128.63,28.32330421]
[1750609546707,7.84,128.66,128.63,18.64964886]
[1750609547004,7.84,128.66,128.63,46.97295307]
[1750609547895,7.84,128.66,128.65,46.97295307]
[1750609548292,7.84,128.66,128.64,29.04330421]
[1750609549689,7.84,128.66,128.65,46.97295307]
[1750609550107,7.84,128.66,128.65,42.74263442]
[1750609550784,14.34925751,128.75,128.65,42.74263442]
[1750609550986,68.20330421,128.74,128.7,28.32330421]
[1750609551181,39.88,128.74,128.7,28.32330421]
[1750609551516,39.88,128.74,128.71,28.32330421]
[1750609551706,28.32330421,128.76,128.71,28.32330421]
[1750609552015,65.88,128.75,128.71,28.32330421]
[1750609552190,39.88,128.75,128.72,28.32330421]
[1750609552514,39.88,128.75,128.71,28.32330421]
[1750609552714,68.20330421,128.75,128.71,28.32330421]
[1750609553287,36.16330421,128.75,128.7,28.32330421]
[1750609553589,36.16330421,128.75,128.71,18.64964886]
[1750609554326,7.84,128.76,128.73,28.32330421]
[1750609554687,7.84,128.76,128.7,18.64964886]
[1750609555002,7.84,128.76,128.7,19.36964886]
[1750609555194,7.84,128.76,128.75,46.97295307]
[1750609555394,7.84,128.76,128.75,19.36964886]
[1750609555616,7.84,128.76,128.73,28.32330421]
[1750609555788,26.71,128.69,128.6,38.60631781]
[1750609555984,26.71,128.69,128.62,28.32330421]
[1750609556183,68.60330421,128.68,128.63,28.32330421]
[1750609556593,28.32330421,128.67,128.62,28.32330421]
[1750609556794,28.32330421,128.67,128.63,18.64964886]
[1750609558507,28.32330421,128.66,128.61,28.32330421]